[Event "Late-Titled-Tuesday-Blitz-January-16-2024"]
[Site "Chess.com"]
[Date "2024.01.16"]
[Round "6"]
[White "aghasiyevkamal"]
[Black "JCVanDamme10"]
[Result "1/2-1/2"]
[WhiteElo "2618"]
[BlackElo "2354"]
[TimeControl "180+1"]
[EndTime "15:04:25 PST"]
[Termination "Game drawn by repetition"]

1. e4 {[%clk 0:02:57]} 1... c5 {[%clk 0:02:53.4]} 2. Nf3 {[%clk 0:02:54.1]} 2...
e6 {[%clk 0:02:52.7]} 3. d4 {[%clk 0:02:52.3]} 3... cxd4 {[%clk 0:02:53.6]} 4.
Nxd4 {[%clk 0:02:52.5]} 4... a6 {[%clk 0:02:53.9]} 5. Nc3 {[%clk 0:02:45.4]}
5... Qc7 {[%clk 0:02:54.1]} 6. f4 {[%clk 0:02:17.3]} 6... Bb4 {[%clk 0:02:46.8]}
7. Nf3 {[%clk 0:02:15.7]} 7... Nf6 {[%clk 0:02:45.5]} 8. Bd3 {[%clk 0:02:14.9]}
8... d5 {[%clk 0:02:37.1]} 9. e5 {[%clk 0:02:12.7]} 9... Ne4 {[%clk 0:02:37.3]}
10. O-O {[%clk 0:01:57.1]} 10... Qc5+ {[%clk 0:02:28.4]} 11. Kh1 {[%clk
0:01:55.7]} 11... Nf2+ {[%clk 0:02:28.6]} 12. Rxf2 {[%clk 0:01:55.8]} 12... Qxf2
{[%clk 0:02:29.2]} 13. Ne2 {[%clk 0:01:52]} 13... Nc6 {[%clk 0:02:23.2]} 14. c3
{[%clk 0:01:51.6]} 14... Be7 {[%clk 0:02:20.9]} 15. Bd2 {[%clk 0:01:37.3]} 15...
h5 {[%clk 0:02:18]} 16. Qc2 {[%clk 0:01:26]} 16... h4 {[%clk 0:02:12.7]} 17. h3
{[%clk 0:01:25.6]} 17... Qa7 {[%clk 0:01:59.1]} 18. f5 {[%clk 0:01:20.4]} 18...
b5 {[%clk 0:01:49.7]} 19. Rf1 {[%clk 0:01:18.7]} 19... Bd7 {[%clk 0:01:42.9]}
20. a4 {[%clk 0:01:10.4]} 20... bxa4 {[%clk 0:01:39.7]} 21. fxe6 {[%clk
0:01:10.4]} 21... fxe6 {[%clk 0:01:25.8]} 22. Bg6+ {[%clk 0:01:09.3]} 22... Kd8
{[%clk 0:01:26.1]} 23. Ned4 {[%clk 0:01:07.5]} 23... Rc8 {[%clk 0:01:18.2]} 24.
Be3 {[%clk 0:01:02.8]} 24... Qb7 {[%clk 0:01:13.8]} 25. Bf7 {[%clk 0:01:00.1]}
25... Nxd4 {[%clk 0:01:10.6]} 26. Nxd4 {[%clk 0:00:58.5]} 26... Rf8 {[%clk
0:01:01.1]} 27. Rf3 {[%clk 0:00:56.3]} 27... g5 {[%clk 0:00:40]} 28. Nxe6+
{[%clk 0:00:37.8]} 28... Bxe6 {[%clk 0:00:39.9]} 29. Bxe6 {[%clk 0:00:38]} 29...
Rxf3 {[%clk 0:00:40.5]} 30. gxf3 {[%clk 0:00:38.3]} 30... Rc4 {[%clk 0:00:33.3]}
31. Bd4 {[%clk 0:00:35.9]} 31... Qb3 {[%clk 0:00:31.3]} 32. Qe2 {[%clk 0:00:30]}
32... a3 {[%clk 0:00:28.5]} 33. bxa3 {[%clk 0:00:29.7]} 33... Qb1+ {[%clk
0:00:27.2]} 34. Kg2 {[%clk 0:00:28.1]} 34... Rxd4 {[%clk 0:00:18.9]} 35. cxd4
{[%clk 0:00:26.8]} 35... Bxa3 {[%clk 0:00:17.4]} 36. Bxd5 {[%clk 0:00:23.1]}
36... Qb2 {[%clk 0:00:17.5]} 37. Bc4 {[%clk 0:00:16.7]} 37... Qxe2+ {[%clk
0:00:15.5]} 38. Bxe2 {[%clk 0:00:16.8]} 38... Bb2 {[%clk 0:00:16.1]} 39. Bxa6
{[%clk 0:00:14.6]} 39... Bxd4 {[%clk 0:00:16.6]} 40. e6 {[%clk 0:00:15.2]} 40...
Ke7 {[%clk 0:00:15.9]} 41. Bc4 {[%clk 0:00:15.3]} 41... Kf6 {[%clk 0:00:15.5]}
42. Kf1 {[%clk 0:00:15.4]} 42... Be5 {[%clk 0:00:15.2]} 43. Ke2 {[%clk
0:00:15.7]} 43... Bf4 {[%clk 0:00:15.3]} 44. Kd3 {[%clk 0:00:16.1]} 44... Ke7
{[%clk 0:00:15.8]} 45. Ke4 {[%clk 0:00:16]} 45... Bc1 {[%clk 0:00:15.7]} 46. Kf5
{[%clk 0:00:15.1]} 46... Bf4 {[%clk 0:00:16.2]} 47. Kg6 {[%clk 0:00:14.1]} 47...
Bc1 {[%clk 0:00:16.7]} 48. Kf5 {[%clk 0:00:13.9]} 48... Bf4 {[%clk 0:00:17.3]}
49. Bd5 {[%clk 0:00:13.8]} 49... Bc1 {[%clk 0:00:17.8]} 50. Ke4 {[%clk
0:00:13.7]} 50... Bf4 {[%clk 0:00:18.4]} 51. Kf5 {[%clk 0:00:11.7]} 51... Bc1
{[%clk 0:00:18.9]} 52. Kg4 {[%clk 0:00:11.7]} 52... Bf4 {[%clk 0:00:19.5]} 53.
Kf5 {[%clk 0:00:11.9]} 1/2-1/2

[Event "Late-Titled-Tuesday-Blitz-January-16-2024"]
[Site "Chess.com"]
[Date "2024.01.16"]
[Round "6"]
[White "Statham_01"]
[Black "GMCorinnaKopff"]
[Result "1/2-1/2"]
[WhiteElo "2537"]
[BlackElo "2340"]
[TimeControl "180+1"]
[EndTime "15:04:29 PST"]
[Termination "Game drawn by repetition"]

1. e4 {[%clk 0:02:54.4]} 1... c5 {[%clk 0:02:59]} 2. Nf3 {[%clk 0:02:54.4]} 2...
Nc6 {[%clk 0:02:59.1]} 3. d4 {[%clk 0:02:55]} 3... cxd4 {[%clk 0:03:00]} 4. Nxd4
{[%clk 0:02:55.7]} 4... Nf6 {[%clk 0:03:00.8]} 5. Nc3 {[%clk 0:02:56.3]} 5... e5
{[%clk 0:03:00.1]} 6. Ndb5 {[%clk 0:02:55.7]} 6... d6 {[%clk 0:03:00.6]} 7. Bg5
{[%clk 0:02:54.9]} 7... a6 {[%clk 0:03:01.1]} 8. Na3 {[%clk 0:02:55.1]} 8... b5
{[%clk 0:03:01.5]} 9. Nd5 {[%clk 0:02:53.3]} 9... Be7 {[%clk 0:03:01.7]} 10.
Bxf6 {[%clk 0:02:53.7]} 10... Bxf6 {[%clk 0:03:02.6]} 11. c4 {[%clk 0:02:54.1]}
11... Nd4 {[%clk 0:03:02.6]} 12. Bd3 {[%clk 0:02:47.9]} 12... Bb7 {[%clk
0:03:02]} 13. O-O {[%clk 0:02:46.9]} 13... Bxd5 {[%clk 0:02:59.4]} 14. exd5
{[%clk 0:02:46.9]} 14... O-O {[%clk 0:02:58.1]} 15. cxb5 {[%clk 0:02:45.9]}
15... g6 {[%clk 0:02:46]} 16. bxa6 {[%clk 0:02:43.9]} 16... Bg7 {[%clk 0:02:46]}
17. Nc2 {[%clk 0:02:42.1]} 17... Qb6 {[%clk 0:02:40.2]} 18. Rb1 {[%clk
0:02:20.9]} 18... f5 {[%clk 0:02:38.1]} 19. Nxd4 {[%clk 0:02:18.9]} 19... Qxd4
{[%clk 0:02:39]} 20. Be2 {[%clk 0:02:14.1]} 20... Qf4 {[%clk 0:02:29.6]} 21. b4
{[%clk 0:02:07.2]} 21... e4 {[%clk 0:02:26.3]} 22. b5 {[%clk 0:01:48.2]} 22...
e3 {[%clk 0:02:21.9]} 23. fxe3 {[%clk 0:01:30.3]} 23... Qxe3+ {[%clk 0:02:21.7]}
24. Kh1 {[%clk 0:01:30.9]} 24... Rfe8 {[%clk 0:01:52.7]} 25. b6 {[%clk
0:01:24.4]} 25... Be5 {[%clk 0:01:37.7]} 26. b7 {[%clk 0:01:09]} 26... Rab8
{[%clk 0:01:37.4]} 27. Qd3 {[%clk 0:00:54.8]} 27... Qh6 {[%clk 0:01:31.5]} 28.
Qh3 {[%clk 0:00:54.9]} 28... Qg7 {[%clk 0:01:27.4]} 29. Bb5 {[%clk 0:00:51.5]}
29... Red8 {[%clk 0:01:23.8]} 30. Bc6 {[%clk 0:00:51.8]} 30... Bd4 {[%clk
0:01:22.5]} 31. a4 {[%clk 0:00:47.3]} 31... Qc7 {[%clk 0:01:14.8]} 32. Qh4
{[%clk 0:00:41.7]} 32... Bc5 {[%clk 0:01:12.9]} 33. Rfe1 {[%clk 0:00:41.5]}
33... Kf8 {[%clk 0:01:07.2]} 34. Re6 {[%clk 0:00:33.2]} 34... Rd7 {[%clk
0:00:58.2]} 35. Qf6+ {[%clk 0:00:30.5]} 35... Kg8 {[%clk 0:00:58.2]} 36. Rbe1
{[%clk 0:00:20.7]} 36... Rf8 {[%clk 0:00:52.4]} 37. Re8 {[%clk 0:00:15.1]} 37...
Rf7 {[%clk 0:00:52.4]} 38. Rxf8+ {[%clk 0:00:14.3]} 38... Rxf8 {[%clk
0:00:52.6]} 39. Qxf8+ {[%clk 0:00:10.7]} 39... Kxf8 {[%clk 0:00:51.7]} 40. Re8+
{[%clk 0:00:11.6]} 40... Kf7 {[%clk 0:00:51.4]} 41. b8=Q {[%clk 0:00:11.9]}
41... Qa5 {[%clk 0:00:51.6]} 42. Rf8+ {[%clk 0:00:09.6]} 42... Kg7 {[%clk
0:00:52.1]} 43. Rg8+ {[%clk 0:00:08.9]} 43... Kh6 {[%clk 0:00:47.6]} 44. Qb1
{[%clk 0:00:09.2]} 44... Qd2 {[%clk 0:00:44.6]} 45. Qf1 {[%clk 0:00:07.3]} 45...
f4 {[%clk 0:00:41.7]} 46. h3 {[%clk 0:00:07]} 46... Qe3 {[%clk 0:00:39.2]} 47.
Re8 {[%clk 0:00:06.4]} 47... Qg3 {[%clk 0:00:37]} 48. Qf3 {[%clk 0:00:06.2]}
48... Qg5 {[%clk 0:00:36.3]} 49. Qg4 {[%clk 0:00:05]} 49... Qf6 {[%clk
0:00:33.3]} 50. Kh2 {[%clk 0:00:02.7]} 50... Bf2 {[%clk 0:00:30.4]} 51. h4
{[%clk 0:00:02.6]} 51... Bg3+ {[%clk 0:00:30.5]} 52. Kh3 {[%clk 0:00:03]} 52...
Qc3 {[%clk 0:00:27.3]} 53. Qg5+ {[%clk 0:00:03.3]} 53... Kg7 {[%clk 0:00:28]}
54. Re7+ {[%clk 0:00:03.7]} 54... Kf8 {[%clk 0:00:28.2]} 55. Re8+ {[%clk
0:00:04.3]} 55... Kg7 {[%clk 0:00:27.9]} 56. Qe7+ {[%clk 0:00:04.5]} 56... Kh6
{[%clk 0:00:28.5]} 57. Qg5+ {[%clk 0:00:02.8]} 57... Kg7 {[%clk 0:00:28.7]}
1/2-1/2

[Event "Late-Titled-Tuesday-Blitz-January-16-2024"]
[Site "Chess.com"]
[Date "2024.01.16"]
[Round "6"]
[White "enriquetejedor"]
[Black "Zkid"]
[Result "1-0"]
[WhiteElo "2765"]
[BlackElo "2916"]
[TimeControl "180+1"]
[EndTime "15:04:32 PST"]
[Termination "enriquetejedor won by resignation"]

1. e3 {[%clk 0:02:57.1]} 1... d5 {[%clk 0:02:50.3]} 2. Nf3 {[%clk 0:02:53.2]}
2... Nf6 {[%clk 0:02:49.6]} 3. b3 {[%clk 0:02:53]} 3... c6 {[%clk 0:02:48]} 4.
Bb2 {[%clk 0:02:53.9]} 4... Bg4 {[%clk 0:02:48.1]} 5. Be2 {[%clk 0:02:53.8]}
5... Nbd7 {[%clk 0:02:47.6]} 6. O-O {[%clk 0:02:53]} 6... h6 {[%clk 0:02:43.7]}
7. d4 {[%clk 0:02:53]} 7... e6 {[%clk 0:02:43.9]} 8. c4 {[%clk 0:02:51.2]} 8...
Bd6 {[%clk 0:02:42.7]} 9. Ne5 {[%clk 0:02:51]} 9... Bxe2 {[%clk 0:02:42.3]} 10.
Qxe2 {[%clk 0:02:51.7]} 10... Qc7 {[%clk 0:02:37.7]} 11. Nf3 {[%clk 0:02:46.1]}
11... Ne4 {[%clk 0:02:34.1]} 12. Nc3 {[%clk 0:02:44.9]} 12... f5 {[%clk
0:02:29.3]} 13. Rac1 {[%clk 0:02:44.8]} 13... Qd8 {[%clk 0:02:28.8]} 14. cxd5
{[%clk 0:02:41.3]} 14... exd5 {[%clk 0:02:28.1]} 15. Nxe4 {[%clk 0:02:36.8]}
15... fxe4 {[%clk 0:02:26.2]} 16. Ne5 {[%clk 0:02:37.7]} 16... O-O {[%clk
0:02:23.2]} 17. f4 {[%clk 0:02:31.7]} 17... exf3 {[%clk 0:02:21.1]} 18. gxf3
{[%clk 0:02:30.3]} 18... Qe8 {[%clk 0:01:56]} 19. Nd3 {[%clk 0:02:21.5]} 19...
Qg6+ {[%clk 0:01:42.7]} 20. Kh1 {[%clk 0:02:21.2]} 20... Rae8 {[%clk 0:01:43.3]}
21. Rce1 {[%clk 0:02:19.7]} 21... Qh5 {[%clk 0:01:39]} 22. f4 {[%clk 0:02:17.6]}
22... Qxe2 {[%clk 0:01:36.3]} 23. Rxe2 {[%clk 0:02:18.5]} 23... Nf6 {[%clk
0:01:36]} 24. Ne5 {[%clk 0:02:16.8]} 24... Ne4 {[%clk 0:01:33.6]} 25. Rg2 {[%clk
0:02:11.9]} 25... Kh7 {[%clk 0:01:33.3]} 26. h4 {[%clk 0:02:10]} 26... Rf5
{[%clk 0:01:24.3]} 27. Rfg1 {[%clk 0:02:03.3]} 27... Re7 {[%clk 0:01:23.1]} 28.
Ng6 {[%clk 0:01:51.5]} 28... Ref7 {[%clk 0:01:21.5]} 29. Kh2 {[%clk 0:01:43.9]}
29... Ng5 {[%clk 0:00:57.7]} 30. hxg5 {[%clk 0:01:38.4]} 30... Kxg6 {[%clk
0:00:57.8]} 31. gxh6+ {[%clk 0:01:36.8]} 31... Kxh6 {[%clk 0:00:58.7]} 32. Rg6+
{[%clk 0:01:36.6]} 32... Kh7 {[%clk 0:00:54.9]} 33. Rxd6 {[%clk 0:01:08.7]}
33... Rh5+ {[%clk 0:00:54.6]} 34. Kg2 {[%clk 0:00:59.7]} 34... g5 {[%clk
0:00:54.5]} 35. Rf1 {[%clk 0:00:50.4]} 35... gxf4 {[%clk 0:00:50.8]} 36. Rxf4
{[%clk 0:00:46.7]} 36... Rg7+ {[%clk 0:00:51]} 37. Kf3 {[%clk 0:00:45.7]} 37...
Rh3+ {[%clk 0:00:50.1]} 38. Ke2 {[%clk 0:00:45.6]} 38... Rg2+ {[%clk 0:00:50]}
39. Kd3 {[%clk 0:00:39.3]} 39... Rxb2 {[%clk 0:00:47.8]} 40. Rf7+ {[%clk
0:00:38.6]} 40... Kg8 {[%clk 0:00:48]} 41. Rxb7 {[%clk 0:00:38.7]} 41... Rf3
{[%clk 0:00:48.2]} 42. Rg6+ {[%clk 0:00:34.3]} 42... Kf8 {[%clk 0:00:46.9]} 43.
Rxc6 {[%clk 0:00:33.9]} 43... Rf7 {[%clk 0:00:47.1]} 44. Rc8+ {[%clk 0:00:32.1]}
44... Kg7 {[%clk 0:00:47.2]} 45. Rxf7+ {[%clk 0:00:32]} 45... Kxf7 {[%clk
0:00:48.1]} 46. Rc7+ {[%clk 0:00:32.5]} 46... Ke6 {[%clk 0:00:48.8]} 47. Rxa7
{[%clk 0:00:32.8]} 47... Kd6 {[%clk 0:00:48.5]} 48. Ra6+ {[%clk 0:00:32.6]}
48... Kd7 {[%clk 0:00:48.5]} 49. Ra5 {[%clk 0:00:32.8]} 49... Kc6 {[%clk
0:00:47.9]} 50. Ra6+ {[%clk 0:00:32.1]} 50... Kd7 {[%clk 0:00:46.6]} 51. e4
{[%clk 0:00:27.1]} 51... dxe4+ {[%clk 0:00:46.4]} 52. Kxe4 {[%clk 0:00:28]}
52... Rh2 {[%clk 0:00:45.9]} 53. Kd5 {[%clk 0:00:28.1]} 53... Rh5+ {[%clk
0:00:45.9]} 54. Kc4 {[%clk 0:00:28.4]} 54... Kc7 {[%clk 0:00:46.1]} 55. a4
{[%clk 0:00:28.3]} 55... Kb7 {[%clk 0:00:46]} 56. Rf6 {[%clk 0:00:28.7]} 56...
Rg5 {[%clk 0:00:46.3]} 57. Re6 {[%clk 0:00:28.8]} 57... Rg1 {[%clk 0:00:45.9]}
58. Re5 {[%clk 0:00:29.1]} 58... Kc6 {[%clk 0:00:45.3]} 59. Re6+ {[%clk
0:00:28.6]} 59... Kd7 {[%clk 0:00:45.9]} 60. Rb6 {[%clk 0:00:26.8]} 60... Kc7
{[%clk 0:00:46.1]} 61. a5 {[%clk 0:00:26.9]} 61... Ra1 {[%clk 0:00:45.3]} 62. b4
{[%clk 0:00:26.8]} 62... Rg1 {[%clk 0:00:45.5]} 63. d5 {[%clk 0:00:26.8]} 63...
Rc1+ {[%clk 0:00:44.3]} 64. Kb5 {[%clk 0:00:27]} 64... Rd1 {[%clk 0:00:44.9]}
65. d6+ {[%clk 0:00:27.5]} 65... Kd7 {[%clk 0:00:45.4]} 66. a6 {[%clk
0:00:27.7]} 66... Rd5+ {[%clk 0:00:45.8]} 67. Kc4 {[%clk 0:00:26.6]} 67... Rd1
{[%clk 0:00:45.9]} 68. Kc5 {[%clk 0:00:26.7]} 68... Ra1 {[%clk 0:00:43.6]} 69.
Rb7+ {[%clk 0:00:26.5]} 69... Kc8 {[%clk 0:00:41.9]} 70. Kb6 {[%clk 0:00:26.5]}
70... Rd1 {[%clk 0:00:38.9]} 71. d7+ {[%clk 0:00:26.3]} 71... Kd8 {[%clk
0:00:39.3]} 72. b5 {[%clk 0:00:26.5]} 72... Rd6+ {[%clk 0:00:33.4]} 73. Kc5
{[%clk 0:00:26.6]} 1-0

[Event "Late-Titled-Tuesday-Blitz-January-16-2024"]
[Site "Chess.com"]
[Date "2024.01.16"]
[Round "6"]
[White "Sebastian"]
[Black "Bigfish1995"]
[Result "1/2-1/2"]
[WhiteElo "2989"]
[BlackElo "3081"]
[TimeControl "180+1"]
[EndTime "15:04:34 PST"]
[Termination "Game drawn by repetition"]

1. e4 {[%clk 0:03:00.9]} 1... e5 {[%clk 0:02:59.4]} 2. Nf3 {[%clk 0:03:01]} 2...
Nc6 {[%clk 0:02:59.4]} 3. Bb5 {[%clk 0:03:01.6]} 3... Nf6 {[%clk 0:02:59.2]} 4.
O-O {[%clk 0:03:01.9]} 4... Nxe4 {[%clk 0:02:59.2]} 5. d4 {[%clk 0:03:02.6]}
5... Nd6 {[%clk 0:02:59.4]} 6. Bxc6 {[%clk 0:03:03.2]} 6... dxc6 {[%clk
0:02:59.8]} 7. dxe5 {[%clk 0:03:03.9]} 7... Nf5 {[%clk 0:03:00.5]} 8. Qxd8+
{[%clk 0:03:04.4]} 8... Kxd8 {[%clk 0:03:01.2]} 9. h3 {[%clk 0:03:05]} 9... h6
{[%clk 0:02:59.7]} 10. Rd1+ {[%clk 0:03:04.8]} 10... Ke8 {[%clk 0:02:58.1]} 11.
Nc3 {[%clk 0:03:05.3]} 11... Ne7 {[%clk 0:02:58.1]} 12. a4 {[%clk 0:03:04.9]}
12... Bf5 {[%clk 0:02:58]} 13. Nd4 {[%clk 0:03:04.3]} 13... Bh7 {[%clk
0:02:58.6]} 14. Bf4 {[%clk 0:02:57.9]} 14... Nf5 {[%clk 0:02:47.2]} 15. Nce2
{[%clk 0:02:31.4]} 15... a6 {[%clk 0:02:42.2]} 16. Nxf5 {[%clk 0:01:45.4]} 16...
Bxf5 {[%clk 0:02:40.4]} 17. Rd2 {[%clk 0:01:43.6]} 17... Rd8 {[%clk 0:02:19.4]}
18. Rad1 {[%clk 0:01:38]} 18... Rxd2 {[%clk 0:02:18.8]} 19. Rxd2 {[%clk
0:01:38.9]} 19... Bc5 {[%clk 0:01:50.6]} 20. g4 {[%clk 0:01:32.3]} 20... Be6
{[%clk 0:01:40.4]} 21. Kg2 {[%clk 0:01:23.2]} 21... Ke7 {[%clk 0:01:18.2]} 22.
Nd4 {[%clk 0:01:12.8]} 22... Bxd4 {[%clk 0:00:33.7]} 23. Rxd4 {[%clk 0:01:13.7]}
23... Rd8 {[%clk 0:00:25.8]} 24. Rxd8 {[%clk 0:01:10.9]} 24... Kxd8 {[%clk
0:00:26.7]} 25. a5 {[%clk 0:01:04.3]} 25... b6 {[%clk 0:00:25.9]} 26. Be3 {[%clk
0:01:00.6]} 26... c5 {[%clk 0:00:23.1]} 27. f4 {[%clk 0:01:00.5]} 27... Bd5+
{[%clk 0:00:16.4]} 28. Kg3 {[%clk 0:00:59.4]} 28... Kd7 {[%clk 0:00:16.4]} 29.
f5 {[%clk 0:00:54.2]} 29... Be4 {[%clk 0:00:13.5]} 30. c3 {[%clk 0:00:53.5]}
30... Bd3 {[%clk 0:00:10.6]} 31. Kf4 {[%clk 0:00:48.6]} 31... f6 {[%clk
0:00:09.6]} 32. h4 {[%clk 0:00:37.4]} 32... Ke7 {[%clk 0:00:05.7]} 33. e6 {[%clk
0:00:25.3]} 33... h5 {[%clk 0:00:04.7]} 34. gxh5 {[%clk 0:00:24.2]} 34... Be2
{[%clk 0:00:04.6]} 35. h6 {[%clk 0:00:20.6]} 35... gxh6 {[%clk 0:00:04.3]} 36.
b4 {[%clk 0:00:08.8]} 36... cxb4 {[%clk 0:00:04]} 37. cxb4 {[%clk 0:00:09.2]}
37... bxa5 {[%clk 0:00:03.9]} 38. Bc5+ {[%clk 0:00:09.2]} 38... Ke8 {[%clk
0:00:03.9]} 39. bxa5 {[%clk 0:00:09.2]} 39... h5 {[%clk 0:00:04.4]} 40. Bd4
{[%clk 0:00:08.8]} 40... Ke7 {[%clk 0:00:04.2]} 41. Bc5+ {[%clk 0:00:09.1]}
41... Ke8 {[%clk 0:00:04.5]} 42. Ke4 {[%clk 0:00:09.7]} 42... Bd1 {[%clk
0:00:03.9]} 43. Bd4 {[%clk 0:00:06]} 43... Bc2+ {[%clk 0:00:03.9]} 44. Kf4
{[%clk 0:00:06.7]} 44... Ke7 {[%clk 0:00:04.5]} 45. Bc5+ {[%clk 0:00:07.1]}
45... Ke8 {[%clk 0:00:05.1]} 46. Bd4 {[%clk 0:00:07.4]} 46... Ke7 {[%clk
0:00:05.6]} 47. Ba7 {[%clk 0:00:06.7]} 47... Ke8 {[%clk 0:00:04.3]} 48. Bb8
{[%clk 0:00:05.7]} 48... c5 {[%clk 0:00:04.4]} 49. Bd6 {[%clk 0:00:05.1]} 49...
c4 {[%clk 0:00:04.9]} 50. Bb4 {[%clk 0:00:05.3]} 50... Bd3 {[%clk 0:00:05.5]}
51. Bc3 {[%clk 0:00:05.7]} 51... Ke7 {[%clk 0:00:05.3]} 52. Bb4+ {[%clk
0:00:05.2]} 52... Ke8 {[%clk 0:00:05.7]} 53. Bc3 {[%clk 0:00:05.9]} 53... Ke7
{[%clk 0:00:06.2]} 54. Bb4+ {[%clk 0:00:06.5]} 54... Ke8 {[%clk 0:00:06.6]}
1/2-1/2

[Event "Late-Titled-Tuesday-Blitz-January-16-2024"]
[Site "Chess.com"]
[Date "2024.01.16"]
[Round "6"]
[White "chenxiaoyuer"]
[Black "ozates"]
[Result "0-1"]
[WhiteElo "2747"]
[BlackElo "2594"]
[TimeControl "180+1"]
[EndTime "15:04:34 PST"]
[Termination "ozates won by checkmate"]

1. e4 {[%clk 0:02:59.2]} 1... c5 {[%clk 0:02:59]} 2. Nf3 {[%clk 0:02:59]} 2...
Nc6 {[%clk 0:02:53]} 3. d4 {[%clk 0:02:59.3]} 3... cxd4 {[%clk 0:02:53.9]} 4.
Nxd4 {[%clk 0:03:00]} 4... e5 {[%clk 0:02:54.7]} 5. Nb5 {[%clk 0:02:59.7]} 5...
d6 {[%clk 0:02:55.2]} 6. c4 {[%clk 0:02:58.3]} 6... g6 {[%clk 0:02:54]} 7. N1c3
{[%clk 0:02:57.8]} 7... a6 {[%clk 0:02:54]} 8. Na3 {[%clk 0:02:58.7]} 8... Bg7
{[%clk 0:02:53.6]} 9. Be3 {[%clk 0:02:57.1]} 9... Nf6 {[%clk 0:02:50.9]} 10. Be2
{[%clk 0:02:56.2]} 10... O-O {[%clk 0:02:50.9]} 11. O-O {[%clk 0:02:56.3]} 11...
Be6 {[%clk 0:02:47.5]} 12. Qd2 {[%clk 0:02:55]} 12... Rc8 {[%clk 0:02:47.1]} 13.
Rad1 {[%clk 0:02:53.8]} 13... Nd4 {[%clk 0:02:45.7]} 14. b3 {[%clk 0:02:21.3]}
14... Qa5 {[%clk 0:02:35]} 15. Nab1 {[%clk 0:02:16.4]} 15... b5 {[%clk 0:02:32]}
16. cxb5 {[%clk 0:02:00.9]} 16... Rxc3 {[%clk 0:02:26.6]} 17. Nxc3 {[%clk
0:01:55.4]} 17... Qxc3 {[%clk 0:02:25.4]} 18. Bxd4 {[%clk 0:01:48.3]} 18... exd4
{[%clk 0:02:13.9]} 19. Qxd4 {[%clk 0:01:37.1]} 19... Nd5 {[%clk 0:01:58.9]} 20.
Qd2 {[%clk 0:01:22.9]} 20... Qxd2 {[%clk 0:01:45.7]} 21. Rxd2 {[%clk 0:01:23.8]}
21... Nc3 {[%clk 0:01:46.1]} 22. bxa6 {[%clk 0:01:22.7]} 22... Nxe2+ {[%clk
0:01:45.8]} 23. Rxe2 {[%clk 0:01:22.8]} 23... Ra8 {[%clk 0:01:46.5]} 24. Rd1
{[%clk 0:01:19.9]} 24... Rxa6 {[%clk 0:01:46.2]} 25. Rc2 {[%clk 0:01:18.4]}
25... g5 {[%clk 0:01:33.4]} 26. f3 {[%clk 0:01:07.6]} 26... h5 {[%clk 0:01:33]}
27. g3 {[%clk 0:01:05.4]} 27... h4 {[%clk 0:01:30.3]} 28. Kf2 {[%clk 0:01:05.7]}
28... f5 {[%clk 0:01:23.2]} 29. exf5 {[%clk 0:00:56.4]} 29... Bxf5 {[%clk
0:01:23.1]} 30. Rcd2 {[%clk 0:00:56.5]} 30... Be5 {[%clk 0:01:21]} 31. Kg2
{[%clk 0:00:51.4]} 31... Kf7 {[%clk 0:01:15.6]} 32. f4 {[%clk 0:00:45.6]} 32...
gxf4 {[%clk 0:00:47]} 33. gxf4 {[%clk 0:00:46.5]} 33... Bc3 {[%clk 0:00:44.8]}
34. Rxd6 {[%clk 0:00:36.5]} 34... Rxa2+ {[%clk 0:00:45]} 35. Kf3 {[%clk
0:00:32.2]} 35... Rxh2 {[%clk 0:00:44.8]} 36. Rc1 {[%clk 0:00:30.9]} 36... Rh3+
{[%clk 0:00:43.7]} 37. Kf2 {[%clk 0:00:28.9]} 37... Be4 {[%clk 0:00:38.3]} 38.
b4 {[%clk 0:00:24.6]} 38... Ke7 {[%clk 0:00:26.4]} 39. Rcd1 {[%clk 0:00:18.2]}
39... Bxb4 {[%clk 0:00:21.7]} 40. Rd7+ {[%clk 0:00:15.7]} 40... Ke6 {[%clk
0:00:22.1]} 41. Ke2 {[%clk 0:00:11.6]} 41... Bc5 {[%clk 0:00:19.5]} 42. f5+
{[%clk 0:00:08.3]} 42... Ke5 {[%clk 0:00:16.5]} 43. f6 {[%clk 0:00:06.9]} 43...
Rh2+ {[%clk 0:00:16.7]} 44. Ke1 {[%clk 0:00:06.6]} 44... Rh1+ {[%clk 0:00:07.5]}
45. Ke2 {[%clk 0:00:06.5]} 45... Rh2+ {[%clk 0:00:08.1]} 46. Ke1 {[%clk
0:00:06.6]} 46... Kxf6 {[%clk 0:00:05.6]} 47. Rd8 {[%clk 0:00:05.9]} 47... Ke5
{[%clk 0:00:05.7]} 48. Re8+ {[%clk 0:00:06]} 48... Kf4 {[%clk 0:00:06.1]} 49.
Rd7 {[%clk 0:00:06.2]} 49... Ke3 {[%clk 0:00:04.7]} 50. Rf7 {[%clk 0:00:03.7]}
50... Bb4+ {[%clk 0:00:03.8]} 51. Kd1 {[%clk 0:00:03.9]} 51... Rh1+ {[%clk
0:00:04.2]} 52. Rf1 {[%clk 0:00:04.3]} 52... Rxf1# {[%clk 0:00:04.6]} 0-1